bitfinex/quotes_ETHUSD_20260217
["timestamp","ask_amount","ask_price","bid_price","bid_amount"]
[1771328543729,10.13625782,1970.5,1969.7,0.48747765]
[1771328543936,10.59478871,1970.5,1969.7,0.48747765]
[1771328544460,10.59478871,1970.5,1969.9,0.48747765]
[1771328544766,1.7272528,1970.5,1969.9,0.48747765]
[1771328545136,0.45853089,1970.5,1969.9,0.48747765]
[1771328546765,0.45853089,1970.5,1970.0,1.26903553]
[1771328548366,0.0011,1970.4,1970.0,1.26903553]
[1771328551773,0.0011,1970.4,1970.0,1.75651318]
[1771328551980,0.0011,1970.4,1969.9,1.75653027]
[1771328555783,0.45853089,1970.3,1969.8,0.001]
[1771328556881,8.86753591,1970.0,1969.6,0.001]
[1771328557077,0.45853089,1969.9,1969.6,0.001]
[1771328557370,1.064,1970.0,1969.6,0.48847765]
[1771328557769,1.064,1970.0,1969.6,1.75776028]
[1771328558150,1.064,1970.0,1969.6,1.27028263]
[1771328558350,1.064,1970.0,1969.6,0.001]
[1771328559770,2.79157815,1970.0,1969.6,0.001]
[1771328560186,1.72757815,1970.0,1969.6,0.001]
[1771328560384,2.79257815,1970.0,1969.6,0.001]
[1771328561082,1.52353089,1970.0,1969.7,0.001]
[1771328561563,2.79257317,1970.0,1969.7,0.001]
[1771328562351,2.79457317,1970.0,1969.7,0.001]
[1771328563778,0.45853089,1969.9,1969.7,0.001]
[1771328564787,1.72764222,1969.9,1969.7,0.001]
[1771328566884,1.07,1969.8,1969.7,0.001]
[1771328570590,1.07,1969.8,1969.5,0.49119016]
[1771328572392,1.07,1969.8,1969.5,1.76052912]
[1771328573080,1.073,1969.9,1969.5,1.76052912]
[1771328573398,1.26907613,1970.0,1969.8,0.001]
[1771328573600,1.073,1969.9,1969.8,0.001]
[1771328575313,5.54766232,1970.1,1969.8,0.001]
[1771328575314,1.26901488,1970.1,1969.8,0.001]
[1771328575474,1.074,1969.9,1969.8,0.001]
[1771328585411,1.0751,1969.9,1969.8,0.001]
[1771328589029,1.0831,1969.9,1969.8,0.001]
[1771328596992,0.0011,1969.9,1969.8,0.001]
[1771328598721,0.0011,1969.9,1969.8,0.48544802]
[1771328599310,0.0011,1969.9,1969.8,1.7546124]
[1771328599921,0.0011,1970.1,1969.9,0.48444802]
[1771328600920,0.0011,1970.1,1969.8,0.001]
[1771328602927,9.34996433,1970.0,1969.7,0.001]
[1771328603137,1.086,1969.9,1969.7,0.001]
[1771328603807,1.26929325,1969.6,1969.4,0.001]
[1771328604006,1.086,1969.5,1969.4,0.001]
[1771328608845,2.3553577,1969.5,1969.0,1.26964834]
[1771328609060,2.83847375,1969.5,1968.9,0.48444802]
[1771328609641,2.83847375,1969.5,1968.8,0.48444802]
[1771328609642,9.34996433,1969.4,1968.8,0.48444802]
[1771328609939,0.48311605,1969.4,1968.8,0.48444802]
[1771328610605,2.3553577,1969.5,1968.8,0.48444802]
[1771328610807,2.3553577,1969.5,1969.4,0.001]
[1771328611133,2.3553577,1969.5,1968.9,0.48444802]
[1771328611134,2.83847375,1969.5,1969.2,0.001]
[1771328614057,2.3553577,1969.5,1969.2,0.001]
[1771328614233,1.094,1969.4,1969.2,0.48544802]
[1771328616926,1.094,1969.5,1969.2,1.75499668]
[1771328617152,1.094,1969.5,1969.3,0.48444802]
[1771328618154,1.094,1969.6,1969.3,0.48444802]
[1771328619260,1.26909995,1969.9,1969.4,0.48444802]
[1771328619261,2.36216889,1969.8,1969.4,0.48444802]
[1771328620149,1.093,1969.8,1969.4,0.48444802]
[1771328620345,2.3621761,1969.8,1969.2,0.48544802]
[1771328620547,2.3621761,1969.8,1969.3,0.48444802]
[1771328621254,2.3621761,1969.8,1969.3,1.26947093]
[1771328621461,2.3621761,1969.8,1969.4,0.48444802]
[1771328621751,1.093,1969.8,1969.4,0.48444802]
[1771328622052,2.36216672,1969.8,1969.2,1.75499336]
[1771328622230,2.36216672,1969.8,1969.3,0.48444802]
[1771328623258,2.36216672,1969.8,1969.3,0.48544802]
[1771328623462,0.0011,1969.5,1969.3,0.48544802]
[1771328626667,0.0011,1969.5,1969.3,0.001]
[1771328628973,0.0011,1969.5,1969.3,0.48793355]
[1771328630656,0.0011,1969.5,1969.3,0.001]
[1771328637078,0.0011,1969.5,1969.4,0.001]
[1771328643366,0.0011,1969.5,1969.4,0.45210631]
[1771328648984,0.0011,1969.8,1969.5,0.45110631]
[1771328650474,0.0011,1969.8,1969.6,0.45110631]
[1771328651390,0.0011,1969.7,1969.6,0.45110631]
[1771328652370,0.0011,1969.7,1969.6,1.72039956]
[1771328653788,0.0011,1969.7,1969.6,0.45110631]
[1771328655204,0.0011,1969.7,1969.4,1.27039584]
[1771328655375,0.0011,1969.7,1969.4,1.27041719]
[1771328655575,0.0011,1969.7,1969.4,0.001]
[1771328656195,0.0011,1969.7,1969.3,0.001]
[1771328656196,0.46099992,1969.7,1969.3,0.001]
[1771328656371,1.55089992,1969.6,1969.1,0.001]
[1771328656702,1.72925762,1969.5,1969.1,0.001]
[1771328660810,0.45989992,1969.4,1969.1,0.001]
[1771328661190,0.45989992,1969.2,1968.6,0.49833436]
[1771328661380,1.095,1969.1,1968.8,0.003]
[1771328663603,1.095,1969.1,1969.0,0.001]
[1771328670312,1.1,1969.1,1969.0,0.001]
[1771328670687,1.55989992,1969.1,1968.4,0.49833436]
[1771328671913,1.55989992,1969.1,1968.5,0.49833436]
[1771328672215,0.45989992,1969.0,1968.5,0.003]
[1771328672797,1.72963302,1969.0,1968.5,0.003]
[1771328672995,0.45989992,1968.9,1968.5,0.003]
[1771328673386,1.72963302,1969.0,1968.5,0.003]
[1771328673692,0.45989992,1968.9,1968.5,0.003]
[1771328675326,1.72969834,1968.9,1968.3,1.76845621]
[1771328675613,1.72969834,1968.9,1968.5,0.001]
[1771328676516,1.101,1968.8,1968.5,0.001]
[1771328676895,1.56089992,1968.8,1968.6,0.003]
[1771328677091,1.56089992,1968.8,1968.4,0.001]
[1771328677295,1.72977344,1968.7,1968.4,0.001]
[1771328677490,1.26987352,1968.7,1968.4,0.001]
[1771328679099,1.101,1968.8,1968.4,0.49933436]
[1771328679427,1.103,1968.8,1968.5,0.49833436]
[1771328680619,5.07834912,1969.2,1968.5,0.49833436]
[1771328680787,1.103,1968.9,1968.5,0.49833436]
[1771328681187,1.103,1969.0,1968.6,1.26993802]
[1771328681411,1.103,1969.0,1968.7,0.49833436]
[1771328681802,2.37269047,1969.0,1968.7,0.49833436]
[1771328682202,1.103,1969.0,1968.7,0.49833436]
[1771328682425,2.3726866,1969.0,1968.7,0.49833436]
[1771328682797,1.103,1969.0,1968.7,0.49833436]
[1771328687201,1.26958697,1969.2,1968.7,0.49833436]
[1771328687400,1.104,1969.1,1968.7,0.49833436]
[1771328687601,1.104,1969.1,1968.7,1.76820461]
[1771328687934,0.0011,1968.9,1968.7,0.49833436]
[1771328688512,0.0011,1968.9,1968.7,1.76820677]
[1771328689822,0.0011,1968.9,1968.7,0.49833436]
[1771328690129,0.0011,1968.9,1968.4,1.27101329]
[1771328690358,0.0011,1968.9,1968.4,1.76559797]
[1771328691734,0.0011,1968.9,1968.5,0.46378543]
[1771328695844,0.0011,1968.9,1968.6,1.26993802]
[1771328696224,0.0011,1968.9,1968.6,0.46378543]
[1771328696420,0.0011,1968.9,1968.5,1.26995059]
[1771328696728,0.0011,1968.9,1968.5,1.73373602]
[1771328699738,0.45897136,1968.9,1968.4,1.27106389]
[1771328699934,0.0011,1968.9,1968.4,1.73484932]
[1771328700641,0.45897136,1968.9,1968.4,0.001]
[1771328700816,0.45787136,1968.8,1968.4,0.001]
[1771328702545,1.72774488,1968.7,1968.5,0.001]
[1771328702737,1.102,1968.6,1968.5,0.001]
[1771328704357,2.37193802,1968.6,1968.5,0.001]
[1771328704557,0.45787136,1968.5,1968.3,0.001]
[1771328704760,2.37193802,1968.6,1968.3,0.001]
[1771328705661,1.102,1968.6,1968.3,0.001]
[1771328705847,2.37193831,1968.6,1968.3,0.001]
[1771328706046,0.0011,1968.8,1968.4,0.46378543]
[1771328706439,0.0011,1968.8,1968.6,0.46378543]
[1771328708631,0.0011,1968.8,1968.7,0.46378543]
[1771328709568,0.0011,1968.8,1968.6,0.46378543]
[1771328711034,0.0011,1968.8,1968.6,1.7336776]
[1771328711234,0.0011,1968.8,1968.7,0.46378543]
[1771328714467,0.0011,1968.8,1968.4,1.74670294]
[1771328714642,0.0011,1968.8,1968.4,1.27003686]
[1771328714842,0.0011,1968.8,1968.5,0.47666608]
[1771328715370,0.0011,1968.8,1968.6,1.7466041]
[1771328716143,0.0011,1968.8,1968.6,0.47666608]
[1771328716472,0.0011,1968.7,1968.6,0.47666608]
[1771328716846,0.0011,1968.7,1968.5,1.26995213]
[1771328717372,0.0011,1968.7,1968.4,1.27102935]
[1771328718758,0.0011,1968.7,1968.4,1.74769543]
[1771328718970,0.0011,1968.7,1968.5,0.47666608]
[1771328719175,0.0011,1968.7,1968.4,0.001]
[1771328719474,0.0011,1968.7,1968.4,0.47766608]
[1771328719653,0.0011,1968.7,1968.4,0.001]
[1771328719856,0.0011,1968.7,1968.4,0.47766608]
[1771328721562,0.0011,1968.7,1968.5,1.74666862]
[1771328724457,0.0011,1968.7,1968.4,1.27103097]
[1771328724780,0.0011,1968.7,1968.4,1.74769705]
[1771328728464,0.0011,1968.7,1968.4,1.27103097]
[1771328728866,0.0011,1968.7,1968.5,0.47666608]
[1771328729180,0.0011,1968.7,1968.5,0.47766608]
[1771328729379,0.0011,1968.7,1968.6,1.26993802]
[1771328729978,0.0011,1968.7,1968.5,1.74764901]
[1771328737703,0.0011,1968.7,1968.6,0.47666608]
[1771328738795,0.0011,1968.9,1968.7,1.26987352]
[1771328738997,0.0011,1969.0,1968.7,1.7465396]
[1771328739785,0.0011,1969.4,1968.8,0.47666608]
[1771328740103,0.46236129,1969.4,1968.8,0.47666608]
[1771328740492,0.46236129,1969.4,1968.8,8.08747164]
[1771328740710,1.7317919,1969.4,1968.8,0.47666608]
[1771328741906,1.7317919,1969.4,1968.9,1.26974452]
[1771328742417,0.0011,1969.0,1968.9,1.26974452]
[1771328744888,0.0011,1969.0,1968.9,1.72843766]
[1771328746892,0.0011,1969.2,1968.9,1.72843766]
[1771328748431,0.0011,1969.2,1968.9,1.26974452]
[1771328751634,0.0011,1969.2,1968.9,1.75968752]
[1771328753653,0.0011,1969.2,1968.9,1.26974452]
[1771328753815,0.0011,1969.2,1968.8,0.489943]
[1771328754424,0.0011,1969.1,1968.8,0.489943]
[1771328755973,0.0011,1969.1,1968.9,1.26974452]
[1771328759968,0.0011,1969.1,1968.8,0.489943]
[1771328761668,1.73485884,1969.4,1968.8,8.10074856]
[1771328761669,0.0011,1969.4,1968.8,8.10074856]
[1771328761868,0.0011,1969.4,1968.9,0.489943]
[1771328762669,0.0011,1969.4,1969.0,1.26968004]
[1771328763755,0.46543302,1969.4,1968.9,1.26973497]
[1771328765177,0.46543302,1969.4,1968.8,5.07914665]
[1771328765360,0.46543302,1969.4,1968.8,5.56908965]
[1771328765966,0.46543302,1969.4,1968.9,0.001]
[1771328766377,0.0011,1969.3,1968.9,0.001]
[1771328769999,0.0011,1969.4,1969.0,8.10074856]
[1771328770660,0.0011,1969.4,1968.9,0.001]
[1771328771787,1.73488897,1969.4,1968.9,0.001]
[1771328772087,1.73487524,1969.4,1968.9,0.001]
[1771328772790,0.46433302,1969.3,1968.9,0.001]
[1771328772991,0.46433302,1969.2,1968.9,0.001]
[1771328773207,0.46433302,1969.1,1968.6,0.001]
[1771328774403,0.4531725,1968.9,1968.6,0.001]
[1771328777406,1.72297671,1968.9,1968.6,0.001]
[1771328777770,0.4531725,1968.9,1968.6,0.001]
[1771328778399,1.72293991,1968.9,1968.5,0.001]
[1771328778596,0.4531725,1968.7,1968.4,0.001]
[1771328779908,1.72305062,1968.7,1968.4,0.001]
[1771328780088,1.72305062,1968.7,1968.5,0.001]
[1771328780400,0.4531725,1968.6,1968.4,0.001]
[1771328780609,1.082,1968.5,1968.4,0.001]
[1771328780818,1.5351725,1968.5,1968.4,0.001]
[1771328781023,1.082,1968.5,1968.4,0.001]
[1771328785831,2.80517504,1968.5,1968.4,0.001]
[1771328788242,1.5351725,1968.5,1968.4,0.001]
[1771328788545,1.082,1968.5,1968.4,0.001]
[1771328789331,1.72308502,1968.7,1968.4,0.001]
[1771328789544,5.53228733,1968.9,1968.4,0.001]
[1771328789707,1.089,1968.7,1968.4,0.001]
[1771328791715,1.089,1968.7,1968.5,0.001]
[1771328792301,1.72303615,1968.8,1968.5,0.001]
[1771328792505,1.089,1968.7,1968.5,0.001]
[1771328792708,1.0901,1968.7,1968.5,0.001]
[1771328793845,0.0011,1968.7,1968.5,0.001]
[1771328798150,0.4542725,1968.7,1968.5,0.001]
[1771328799552,0.4542725,1968.7,1968.2,0.001]
[1771328799553,0.4531725,1968.6,1968.2,0.001]
[1771328800046,1.72317504,1968.5,1968.2,0.001]
[1771328800254,1.091,1968.4,1968.2,0.001]
[1771328800464,0.4531725,1968.2,1967.4,0.48420169]
[1771328800620,8.06859631,1968.3,1967.4,0.48420169]
[1771328800953,1.092,1968.1,1967.4,0.48420169]
[1771328801828,1.092,1968.0,1967.5,1.27064803]
[1771328802156,1.092,1968.0,1967.6,0.48420169]
[1771328804158,1.092,1968.0,1967.7,1.27151887]
[1771328804537,1.091,1968.2,1967.8,0.45358868]
[1771328806663,1.091,1968.2,1967.8,1.72399435]
[1771328806832,1.091,1968.3,1967.8,1.72399435]
[1771328808366,1.09,1968.5,1967.9,0.45358868]
[1771328808746,1.74959307,1968.6,1968.0,1.72391388]
[1771328808953,2.83959307,1968.6,1968.0,1.72391388]
[1771328809262,1.0911,1968.6,1968.1,0.45358868]
[1771328809447,2.36104035,1968.6,1968.1,0.45358868]
[1771328814476,2.36104035,1968.6,1968.1,1.72382328]
[1771328814477,2.36204035,1968.6,1968.1,1.72382328]
[1771328814858,2.36204035,1968.6,1968.1,0.45358868]
[1771328815538,2.84626939,1968.6,1968.0,1.27028112]
[1771328817092,2.84626939,1968.6,1968.2,0.001]
[1771328817370,0.0011,1968.5,1968.2,0.001]
[1771328817540,1.0921,1968.5,1968.2,0.001]
[1771328817741,1.0921,1968.5,1968.2,0.49177045]
[1771328817742,0.0011,1968.5,1968.2,0.49177045]
[1771328819979,0.0011,1968.5,1968.2,1.76193633]
[1771328821980,0.0011,1968.5,1968.3,0.49077045]
[1771328822561,0.0011,1968.5,1968.2,0.001]
[1771328826589,0.0011,1968.7,1968.5,0.49077045]
[1771328826889,1.75520452,1968.7,1968.2,0.001]
[1771328827459,2.36197548,1968.7,1968.2,0.001]
[1771328827682,1.75420903,1968.6,1968.2,0.001]
[1771328828055,0.48422904,1968.6,1968.2,0.001]
[1771328828258,2.36203073,1968.7,1968.2,0.001]
[1771328828560,0.0011,1968.9,1968.6,0.49077045]
[1771328829060,1.68055673,1969.2,1968.6,0.49077045]
[1771328829886,1.68055673,1969.2,1968.6,1.7606716]
[1771328830582,0.411,1969.2,1968.6,1.7606716]
[1771328830809,1.75486085,1969.3,1968.7,0.49077045]
[1771328830984,1.091,1969.2,1968.7,0.49077045]
[1771328831693,0.0011,1969.1,1968.7,0.49077045]
[1771328831885,0.0011,1969.1,1968.8,1.76057947]
[1771328833676,0.0011,1969.1,1968.9,0.49077045]
[1771328834100,0.0011,1969.1,1968.8,1.26980902]
[1771328834101,0.0011,1969.1,1968.7,0.49077045]
[1771328834581,0.0011,1969.1,1968.8,0.46545837]
[1771328836806,0.0011,1969.1,1968.9,1.73520289]
[1771328837509,0.0011,1969.1,1969.0,0.46545837]
[1771328838419,0.0011,1969.3,1969.0,0.46545837]
[1771328838914,0.0011,1969.3,1969.1,1.26961556]
[1771328839323,0.0011,1969.3,1969.1,1.73507393]
[1771328839816,0.0011,1969.5,1969.3,0.46545837]
[1771328839981,0.0011,1969.5,1969.2,0.46545837]
[1771328840710,0.0011,1969.5,1969.1,1.26961556]
[1771328841316,0.49304482,1969.5,1969.0,5.0785734]
[1771328841780,0.0011,1969.5,1969.0,5.54403177]
[1771328843485,0.0011,1969.4,1969.0,5.54403177]
[1771328844314,0.0011,1969.4,1969.1,0.46545837]
[1771328844897,0.0011,1969.4,1969.2,1.73500945]
[1771328847521,0.0011,1969.4,1969.3,0.46545837]
[1771328848189,0.0011,1969.5,1969.3,0.46545837]
[1771328848190,0.0011,1969.6,1969.3,0.46545837]
[1771328849115,0.0011,1969.6,1969.4,1.26942215]
[1771328850421,0.0011,1969.6,1969.3,5.54328811]
[1771328850633,0.0011,1969.6,1969.3,1.26948661]
[1771328850994,0.0011,1969.6,1969.2,5.07805551]
[1771328851300,0.0011,1969.6,1969.2,1.26955108]
[1771328852003,0.0011,1969.6,1969.2,1.73500945]
[1771328855095,0.0011,1969.6,1969.3,0.001]
[1771328855405,0.0011,1969.5,1969.3,0.001]
[1771328856899,0.49304482,1969.5,1969.3,0.001]
[1771328857210,0.49304482,1969.5,1969.0,0.001]
[1771328857947,0.49194482,1969.3,1969.0,0.001]
[1771328858539,0.49194482,1969.3,1968.4,1.27002256]
[1771328858697,0.49194482,1969.3,1968.5,0.002]
[1771328859218,0.49194482,1969.1,1968.5,0.002]
[1771328862029,0.49194482,1968.9,1968.5,0.002]
[1771328862238,1.57294482,1968.9,1968.5,0.002]
[1771328865524,2.84271139,1968.9,1968.5,0.002]
[1771328866742,1.26964269,1969.1,1968.5,0.49820462]
[1771328867049,0.45064798,1969.1,1968.5,0.002]
[1771328867550,0.45064798,1968.9,1968.6,0.002]
[1771328867858,0.45064798,1968.9,1968.6,0.001]
[1771328868015,0.45064798,1968.9,1968.6,0.003]
[1771328869276,1.084,1968.8,1968.6,0.003]
[1771328869458,1.084,1968.9,1968.6,0.003]
[1771328871341,0.47882168,1968.5,1968.3,0.001]
[1771328871560,1.56282168,1968.4,1968.0,0.001]
[1771328872272,2.83291483,1968.4,1968.0,0.001]
[1771328876054,0.47882168,1968.3,1968.0,0.001]
[1771328877834,2.35409315,1968.4,1968.0,0.001]
[1771328877835,1.74901779,1968.2,1968.0,0.001]
[1771328878146,0.47882168,1968.2,1968.0,0.001]
[1771328878547,1.27017631,1968.3,1967.5,0.001]
[1771328878548,0.47882168,1968.0,1967.5,0.001]
[1771328878757,1.087,1967.9,1967.5,0.001]
[1771328879943,2.35741555,1967.9,1967.5,0.001]
[1771328880551,1.087,1967.9,1967.5,0.001]
[1771328880743,1.27006705,1968.4,1967.5,0.4626071]
[1771328881071,1.56782168,1968.3,1967.8,0.001]
[1771328881264,0.47882168,1968.3,1967.8,0.001]
[1771328881453,1.089,1968.2,1967.8,0.4626071]
[1771328882383,1.089,1968.2,1967.9,1.27038975]
[1771328882555,1.089,1968.2,1967.8,0.4626071]
[1771328882742,2.3591775,1968.3,1967.8,0.4626071]
[1771328883776,1.089,1968.3,1967.8,1.73306079]
[1771328883969,1.09,1968.3,1967.8,1.73306079]
[1771328884892,2.36013278,1968.3,1967.8,1.73306079]
[1771328885268,1.74893961,1968.4,1967.8,1.73306079]
[1771328885476,1.089,1968.3,1967.8,1.73306079]
[1771328885680,1.09,1968.3,1967.5,0.001]
[1771328885990,0.47882168,1968.1,1967.5,0.001]
[1771328886294,0.47882168,1967.9,1967.5,0.001]
[1771328886458,0.47882168,1967.8,1967.5,0.001]
[1771328886858,1.74933971,1967.8,1967.5,0.001]
[1771328887497,1.27051803,1967.8,1967.5,0.001]
[1771328890599,0.47882168,1967.7,1967.0,1.27094947]
[1771328890818,1.74933971,1967.8,1967.1,0.4616071]
[1771328890981,1.092,1967.8,1967.5,0.4616071]
[1771328891466,1.092,1967.8,1967.2,8.06663983]
[1771328891666,1.27019611,1968.2,1967.3,0.4616071]
[1771328891867,0.958,1968.1,1967.3,0.4616071]
[1771328892472,0.958,1968.1,1967.6,0.0011]
[1771328892813,0.001,1968.0,1967.6,1.27168345]
[1771328893315,0.001,1968.0,1967.6,1.73329055]
[1771328893521,0.001,1968.0,1967.7,0.4616071]
[1771328894987,0.001,1968.0,1967.8,1.7353044]
[1771328895590,1.092,1968.4,1967.9,0.46485009]
[1771328896099,1.26989784,1968.7,1968.1,0.46485009]
[1771328896300,1.092,1968.6,1967.9,0.46485009]
[1771328897087,1.27000254,1968.5,1968.0,1.2703252]
[1771328898723,2.81364462,1968.6,1968.0,1.2703252]
[1771328898907,1.72265281,1968.8,1968.1,0.46485009]
[1771328899224,2.36187489,1968.7,1968.2,1.7350462]
[1771328899395,1.092,1968.7,1968.2,1.7350462]
[1771328900020,2.36291355,1968.8,1968.2,1.7350462]
[1771328900522,2.36291355,1968.8,1968.3,0.46485009]
[1771328900893,2.36291355,1968.8,1968.0,12.68621315]
[1771328901090,2.36291355,1968.8,1968.1,1.73511074]
[1771328902291,2.36291355,1968.8,1968.2,0.46485009]
[1771328902292,0.0011,1968.8,1968.2,0.46485009]
[1771328902499,1.0931,1968.8,1968.2,0.46485009]
[1771328902905,0.0011,1968.8,1968.2,0.46485009]
[1771328903121,0.0011,1968.8,1968.5,0.46485009]
[1771328903628,1.27093398,1968.8,1968.1,1.27026065]
[1771328903832,1.27091411,1968.8,1968.2,0.46485009]
[1771328905031,1.27091411,1968.8,1968.2,1.73498367]
[1771328905226,0.0011,1968.7,1968.2,1.27013358]
[1771328905810,0.0011,1968.7,1968.1,1.27121178]
[1771328909039,0.0011,1968.7,1968.1,1.73606187]
[1771328909735,0.0011,1968.7,1968.1,0.46585009]
[1771328909941,0.4528066,1968.7,1968.1,0.001]
[1771328910117,1.5427066,1968.6,1968.1,0.001]
[1771328910315,0.4517066,1968.5,1968.1,0.001]
[1771328910520,1.27006705,1968.4,1968.1,0.001]
[1771328911412,5.53192072,1968.5,1968.1,0.001]
[1771328912839,5.08021412,1968.5,1968.1,0.001]
[1771328913143,0.4517066,1968.4,1968.1,0.001]
[1771328914239,0.4517066,1968.4,1967.8,0.001]
[1771328915014,1.72183818,1968.3,1967.8,0.001]
[1771328916443,1.092,1968.2,1967.8,0.001]
[1771328917041,2.36221311,1968.2,1967.8,0.001]
[1771328918945,2.36221311,1968.2,1967.9,0.0011]
[1771328919449,1.092,1968.2,1967.9,0.0011]
[1771328919851,2.36219914,1968.2,1967.9,0.0011]
[1771328920052,1.27019914,1968.2,1967.9,0.0011]
[1771328920264,0.4517066,1968.1,1967.6,0.0011]
[1771328921418,1.2703252,1968.0,1967.6,0.0011]
[1771328925055,1.72201436,1968.1,1967.6,0.0011]
[1771328925595,0.49115533,1968.6,1967.8,0.45482028]
[1771328925774,0.0011,1968.7,1967.8,0.45482028]
[1771328926080,1.27097786,1968.7,1967.8,0.45482028]
[1771328926650,0.0011,1968.7,1967.8,0.45482028]
[1771328927453,0.0011,1968.7,1968.0,0.45482028]
[1771328927659,0.0011,1968.7,1968.2,0.45482028]
[1771328930285,0.0011,1968.7,1968.3,1.72495186]
[1771328930779,0.001,1968.6,1968.3,1.72495186]
[1771328931458,0.001,1968.6,1968.4,0.49104411]
[1771328932466,0.001,1968.6,1968.5,1.27000254]
[1771328933084,0.001,1968.6,1968.5,1.76104665]
[1771328934152,0.0011,1968.8,1968.6,0.49104411]
[1771328934568,0.0011,1968.8,1968.7,1.76091763]
[1771328935459,0.0011,1968.8,1968.3,1.27013158]
[1771328938074,0.48739716,1968.8,1968.2,0.49104411]
[1771328938465,0.48739716,1968.8,1968.2,1.76123966]
[1771328940393,0.0011,1968.8,1968.2,1.27019555]
[1771328940698,0.0011,1968.8,1968.3,0.49104411]
[1771328940870,1.2709206,1968.8,1968.3,0.49104411]
[1771328941072,0.0011,1968.8,1968.3,0.49104411]
[1771328942404,0.0011,1968.8,1968.3,1.76112109]
[1771328943081,0.0011,1968.7,1968.3,1.76112109]
[1771328943482,0.0011,1968.7,1968.4,0.49104411]
[1771328945395,0.0011,1968.7,1968.2,0.49104411]
[1771328947304,0.0011,1968.8,1968.6,0.49104411]
[1771328949814,0.0011,1968.8,1968.1,1.76130476]
[1771328949994,0.0011,1968.8,1968.2,0.49104411]
[1771328950801,0.48739716,1968.8,1968.2,0.49104411]
[1771328951506,1.75725303,1968.8,1968.2,1.76117895]
[1771328952080,0.48629716,1968.7,1968.1,1.2702101]
[1771328953188,0.48629716,1968.7,1968.1,1.76125421]
[1771328953590,1.75623518,1968.6,1968.1,1.2702101]
[1771328953810,0.48629716,1968.6,1968.1,1.2702101]
[1771328954010,1.26992483,1968.7,1968.1,1.76125421]
[1771328954309,1.75971252,1968.7,1968.1,1.76125421]
[1771328954812,1.75971252,1968.7,1968.2,0.001]
[1771328955008,0.0011,1968.6,1968.2,0.001]
[1771328955700,0.0011,1968.6,1968.2,0.45389934]
[1771328955900,0.0011,1968.6,1968.3,1.27013158]
[1771328956583,0.0011,1968.8,1968.4,0.45289934]
[1771328956788,0.0011,1969.1,1968.4,0.45289934]
[1771328957004,0.0022,1969.1,1968.4,0.45289934]
[1771328957513,0.0011,1969.1,1968.4,0.45289934]
[1771328958107,0.0022,1969.1,1968.6,0.45289934]
[1771328959019,0.0011,1969.1,1968.6,0.45289934]
[1771328959190,0.0022,1969.1,1968.6,0.45289934]
[1771328960197,0.0022,1969.1,1968.8,0.45289934]
[1771328960717,0.0011,1969.4,1968.8,0.45289934]
[1771328962289,0.0011,1969.4,1969.0,0.45289934]
[1771328963989,0.0011,1969.4,1968.9,1.26974452]
[1771328964193,0.0011,1969.4,1968.9,1.72264386]
[1771328967105,0.0011,1969.4,1969.0,0.45289934]
[1771328968013,0.0011,1969.3,1969.0,0.45289934]
[1771328970021,0.0011,1969.3,1969.1,1.26961556]
[1771328972197,0.0011,1969.3,1968.9,1.27069987]
[1771328972790,0.0011,1969.3,1968.9,0.001]
[1771328973125,0.49088769,1969.3,1968.9,0.001]
[1771328973298,0.49088769,1969.3,1968.9,1.27074164]
[1771328973746,0.49088769,1969.3,1968.9,0.001]
[1771328974911,1.76037856,1969.3,1968.9,0.001]
[1771328976014,0.49088769,1969.3,1968.9,0.001]
[1771328977613,0.0011,1969.3,1968.9,0.45389934]
[1771328979141,0.0011,1969.3,1968.9,0.001]
[1771328979842,0.0011,1969.3,1969.0,0.001]
[1771328980144,0.0011,1969.2,1969.0,0.001]
[1771328982027,0.0011,1969.2,1969.0,1.72357938]
[1771328982322,0.0011,1969.4,1969.2,0.45289934]
[1771328982564,0.0011,1969.4,1969.0,1.27068004]
[1771328982565,0.0011,1969.4,1969.0,1.72357938]
[1771328984057,0.0011,1969.4,1969.1,0.45289934]
[1771328986233,0.0011,1969.4,1969.3,0.45167326]
[1771328986439,0.0011,1969.6,1969.3,0.45167326]
[1771328988054,0.0011,1969.8,1969.5,0.45167326]
[1771328988355,0.0011,1969.8,1969.6,1.26929325]
[1771328990651,0.0011,1970.0,1969.7,8.10379879]
[1771328990963,0.47675769,1970.3,1969.7,0.49716259]
[1771328991151,0.0011,1970.3,1969.7,0.49716259]
[1771328991534,0.47675769,1970.3,1969.7,0.49716259]
[1771328991952,0.0011,1970.0,1969.6,1.76645584]
[1771328998269,0.0011,1970.0,1969.6,1.26929325]
[1771329000773,0.47675769,1970.0,1969.6,1.26929325]
[1771329001068,0.47675769,1970.0,1969.5,1.26932691]
[1771329001474,0.47675769,1970.0,1969.2,1.045]
[1771329001679,0.47565769,1969.9,1969.2,2.31451542]
[1771329001846,0.47565769,1969.9,1969.2,1.26951542]
[1771329002350,0.47565769,1969.7,1969.1,5.07834511]
[1771329002774,0.47565769,1969.7,1969.1,1.26961556]
[1771329003151,2.32916438,1969.8,1969.1,1.76677815]
[1771329003349,1.26916438,1969.8,1969.2,0.49716259]
[1771329003749,1.74482207,1969.8,1969.3,0.001]
[1771329004248,0.47565769,1969.7,1969.3,0.001]
[1771329005060,1.74489294,1969.7,1969.3,0.001]
[1771329010179,0.47565769,1969.6,1969.3,0.001]
[1771329015791,0.47565769,1969.6,1969.4,0.001]
[1771329017488,1.2692312,1969.7,1969.4,0.001]
[1771329017671,1.7362548,1969.7,1969.4,0.001]
[1771329018671,0.4670236,1969.7,1969.4,0.001]
[1771329019198,1.5280236,1969.7,1969.4,0.001]
[1771329019504,1.061,1969.7,1969.4,0.001]
[1771329021907,0.4681236,1970.0,1969.4,0.46298987]
[1771329022129,1.0631,1970.0,1969.4,0.46298987]
[1771329022274,1.0631,1970.0,1969.6,0.46198987]
[1771329023910,0.0011,1970.0,1969.7,1.26922881]
[1771329024106,0.0011,1970.0,1969.8,0.46198987]